bitfinex-derivatives/quotes_ETHF0:USTF0_20250404
["timestamp","ask_amount","ask_price","bid_price","bid_amount"]
[1743782478766,3.2078,1798.3,1798.0,4.32054]
[1743782478963,3.2078,1798.3,1798.1,3.5332]
[1743782479164,3.2078,1798.9,1798.2,3.2078]
[1743782479466,3.2078,1798.9,1798.4,3.2078]
[1743782479672,1.1123,1798.8,1798.5,8.3232]
[1743782479867,1.11236,1798.7,1798.5,44.3332]
[1743782480066,1.11249,1798.5,1798.2,2.8267]
[1743782480270,3.2078,1798.6,1798.3,3.3211]
[1743782480466,1.11242,1798.6,1798.1,1.11267]
[1743782480767,6.6695,1798.8,1798.2,45.12041]
[1743782480967,4.57401,1798.8,1798.4,3.2078]
[1743782481172,3.2078,1799.1,1798.5,4.43353]
[1743782481374,1.11222,1798.9,1798.6,3.2078]
[1743782481675,2.9929,1799.4,1798.9,1.11218]
[1743782481870,3.4617,1799.4,1799.2,3.2078]
[1743782482072,1.11198,1799.3,1799.2,3.2078]
[1743782482281,3.4617,1799.4,1799.2,3.2078]
[1743782482575,3.4617,1799.6,1799.1,0.00833843]
[1743782482772,4.57353,1799.6,1799.2,1.11198]
[1743782482973,4.57353,1799.6,1799.2,4.43308]
[1743782483172,4.57353,1799.6,1799.1,0.00833843]
[1743782483173,3.4617,1799.6,1799.1,0.00833843]
[1743782483372,1.11198,1799.3,1799.1,0.00833843]
[1743782483572,3.4617,1799.6,1799.1,0.00833843]
[1743782483777,3.4617,1799.6,1799.3,1.11196]
[1743782483979,4.57349,1799.6,1799.4,3.2902]
[1743782484172,1.11184,1799.5,1799.4,3.2902]
[1743782484480,4.31964,1799.5,1799.1,0.00833843]
[1743782484775,3.2558,1799.4,1799.1,1.12039843]
[1743782484979,3.2558,1799.4,1799.1,0.00833843]
[1743782485578,3.2558,1799.4,1799.1,1.12038843]
[1743782486182,3.2558,1799.4,1799.2,1.112]
[1743782486473,3.2558,1799.4,1799.2,3.307]
[1743782486681,3.2078,1799.7,1799.2,6.5148]
[1743782486870,4.04338,1799.8,1799.4,1.11189]
[1743782487074,3.3437,1799.7,1799.6,1.11176]
[1743782487276,1.11155,1800.0,1799.6,4.31955]
[1743782487579,1.11172,1799.7,1799.3,1.11193]
[1743782487779,3.3437,1799.6,1799.2,6.5148]
[1743782487975,3.3437,1799.6,1799.3,1.11192]
[1743782488176,6.5515,1799.6,1799.2,3.307]
[1743782488371,3.3437,1799.6,1799.4,1.11187]
[1743782488581,7.66332,1799.6,1799.2,7.62679]
[1743782488782,6.5515,1799.6,1799.2,6.5148]
[1743782488978,3.3437,1799.6,1799.2,6.5148]
[1743782489188,3.2078,1799.3,1799.1,0.00833843]
[1743782489380,9.41002,1799.2,1799.1,0.00833843]
[1743782489580,1.11214,1799.1,1798.7,1.11233]
[1743782489785,6.7258,1799.0,1798.6,3.2078]
[1743782489983,1.11221,1798.9,1798.6,1.11237]
[1743782490187,1.11235,1798.7,1798.0,10.746]
[1743782490378,3.2078,1798.4,1798.2,4.54949]
[1743782490579,4.32032,1798.4,1798.0,4.78]
[1743782490883,7.83832,1798.4,1798.1,1.12101843]
[1743782491080,1.11258,1798.3,1798.1,0.00833843]
[1743782491282,7.83844,1798.2,1798.1,0.00833843]
[1743782491585,3.518,1798.2,1798.1,1.12103843]
[1743782491786,3.21613843,1798.5,1798.4,1.11252]
[1743782491979,0.00833843,1798.5,1798.4,1.11252]
[1743782493184,0.00833843,1798.5,1798.4,3.61252]
[1743782493389,3.2524,1798.9,1798.7,1.11228]
[1743782493582,3.2524,1798.9,1798.8,1.11227]
[1743782493884,1.11206,1799.2,1799.0,1.11214]
[1743782494091,7.57226,1799.2,1798.9,1.11216]
[1743782494287,7.57226,1799.2,1799.0,1.1121]
[1743782494492,7.57225,1799.2,1799.0,1.11213]
[1743782494784,1.11221,1798.9,1798.8,40.8]
[1743782494991,3.2078,1799.0,1798.8,40.8]
[1743782495184,3.3383,1798.9,1798.8,41.91227]
[1743782495387,4.45051,1798.9,1798.8,40.8]
[1743782495579,1.11235,1798.7,1798.5,1.11241]
[1743782495884,3.3383,1798.6,1798.5,1.11241]
[1743782496385,6.5461,1798.6,1798.0,3.2078]
[1743782496587,7.65851,1798.6,1798.2,3.2455]
[1743782496782,7.65851,1798.6,1798.5,1.11246]
[1743782496783,6.5461,1798.6,1798.5,1.11246]
[1743782496984,6.5461,1798.6,1798.4,1.11248]
[1743782496985,1.11246,1798.5,1798.4,1.11248]
[1743782497177,1.11246,1798.5,1798.3,41.91254]
[1743782497485,4.32032,1798.4,1798.3,40.8]
[1743782497787,1.11252,1798.4,1798.3,40.8]
[1743782497977,4.32032,1798.4,1798.3,40.8]
[1743782498177,1.11264,1798.2,1798.1,0.00833843]
[1743782498590,4.4301,1798.3,1798.1,0.00833843]
[1743782498888,3.3175,1798.3,1798.2,1.11264]
[1743782499084,3.2078,1798.6,1798.1,40.80833843]
[1743782499288,3.2078,1798.6,1798.5,1.11246]
[1743782499484,2.8621,1799.0,1798.4,5.989]
[1743782499688,7.33898,1799.3,1798.6,3.2078]
[1743782499987,1.11202,1799.2,1798.7,2.78069]
[1743782500189,1.11202,1799.2,1799.0,1.11211]
[1743782500384,3.3175,1799.1,1799.0,1.11211]
[1743782500783,6.5253,1799.1,1799.0,1.11211]
[1743782500983,1.11223,1798.9,1798.7,1.11229]
[1743782501184,3.3175,1798.8,1798.7,1.11229]
[1743782501386,4.42977,1798.8,1798.5,3.493]
[1743782501790,4.42982,1798.8,1798.6,1.11236]
[1743782502091,3.3175,1798.8,1798.7,1.11233]
[1743782502288,3.3175,1798.8,1798.2,1.11261]
[1743782502289,2.78084,1798.7,1798.2,1.11261]
[1743782502489,1.11255,1798.4,1798.2,1.11259]
[1743782502690,4.44708,1798.3,1798.2,1.11259]
[1743782502887,1.11264,1798.2,1798.1,41.92103843]
[1743782503090,3.3345,1798.2,1798.1,41.92103843]
[1743782503593,4.32023,1798.6,1798.5,1.11246]
[1743782503986,1.1126,1798.3,1798.1,40.80833843]
[1743782504187,3.2078,1798.4,1798.2,1.11263]
[1743782504386,4.32036,1798.4,1798.2,1.11263]
[1743782504798,4.776,1798.7,1798.5,1.11245]
[1743782505094,3.3398,1798.6,1798.5,1.11245]
[1743782505789,6.204,1798.8,1798.4,6.23358]
[1743782505994,3.3398,1798.7,1798.6,1.11237]
[1743782506191,3.3398,1798.7,1798.4,3.4524]
[1743782506395,1.11239,1798.6,1798.5,1.1124]
[1743782506587,3.3398,1798.7,1798.6,1.11239]
[1743782507790,3.2078,1799.4,1798.6,10.4828]
[1743782507990,3.5655,1799.3,1799.2,1.11202]
[1743782508292,4.67746,1799.3,1799.2,41.91202]
[1743782508494,4.67746,1799.3,1799.1,0.00833843]
[1743782508495,1.11202,1799.2,1799.1,0.00833843]
[1743782508789,6.7733,1799.2,1799.1,0.00833843]
[1743782508994,7.88532,1799.2,1799.1,0.00833843]
[1743782509793,3.5655,1799.2,1799.1,1.12041843]
[1743782510702,1.11192,1799.4,1799.1,1.12041843]
[1743782510904,3.2915,1799.3,1799.2,1.11198]
[1743782512095,3.2078,1799.5,1799.3,2.77991]
[1743782512300,6.4993,1799.7,1799.5,1.1118]
[1743782512496,6.4993,1799.7,1799.6,1.11178]
[1743782512803,6.0358,1800.2,1800.1,1.11147]
[1743782512999,3.2078,1800.4,1800.3,1.11134]
[1743782513796,0.556,1800.8,1800.7,1.1111]
[1743782513997,10.8088,1800.9,1800.6,1.11114]
[1743782514200,3.2987,1800.7,1800.3,6.5688]
[1743782514410,3.2078,1800.4,1800.3,1.1113]
[1743782514698,3.2078,1800.6,1800.2,0.00833843]
[1743782514905,3.2987,1800.5,1800.4,1.11126]
[1743782516008,3.2078,1800.8,1800.7,1.1111]
[1743782516304,4.31883,1800.8,1800.7,1.1111]
[1743782516504,3.2078,1800.8,1800.7,1.1111]
[1743782519200,7.85781,1801.0,1800.9,1.11097]
[1743782519703,6.7469,1801.0,1800.6,6.13759]
[1743782519907,3.2078,1800.8,1800.4,2.7782]
[1743782520205,3.5115,1800.7,1800.6,1.11116]
[1743782520406,3.2078,1801.0,1800.9,1.11097]
[1743782520608,6.7193,1801.0,1800.7,3.517]
[1743782520900,6.7193,1801.0,1800.9,1.11097]
[1743782521601,6.7193,1801.0,1800.7,6.29475]
[1743782521602,4.62244,1801.0,1800.7,3.517]
[1743782521804,1.11103,1800.8,1800.7,3.517]
[1743782522006,3.2078,1800.8,1800.4,1.11123]
[1743782522308,1.11134,1800.3,1800.2,1.11969843]
[1743782522608,1.11134,1800.3,1800.2,1.11973843]
[1743782522609,3.2078,1800.3,1800.2,1.11973843]
[1743782522812,3.3594,1800.4,1800.3,1.11134]
[1743782523106,1.11134,1800.3,1800.2,0.00833843]
[1743782523597,6.97074,1800.3,1800.2,0.00833843]
[1743782523797,4.47074,1800.3,1800.2,0.00833843]
[1743782524405,4.47074,1800.3,1800.2,1.11973843]
[1743782524598,4.47074,1800.3,1800.2,0.00833843]
[1743782524802,6.97074,1800.3,1800.2,0.00833843]
[1743782524999,3.3594,1800.3,1800.2,1.11973843]
[1743782525308,1.11134,1800.3,1800.2,1.11972843]
[1743782525610,4.43834,1800.3,1800.2,0.00833843]
[1743782525802,6.93834,1800.3,1800.2,0.00833843]
[1743782526004,11.70534,1800.3,1800.2,0.00833843]
[1743782527306,9.20534,1800.3,1800.2,0.00833843]
[1743782528212,9.20534,1800.3,1799.6,1.1117]
[1743782528213,1.11175,1799.7,1799.6,1.1117]
[1743782528401,4.3195,1799.8,1799.7,1.11171]
[1743782528802,7.87855,1799.8,1799.7,40.8]
[1743782529007,3.5591,1799.8,1799.7,41.91171]
[1743782529608,7.87855,1799.8,1799.7,40.8]
[1743782529807,1.11171,1799.7,1799.6,0.00833843]
[1743782530006,9.43681,1799.7,1799.6,0.00833843]
[1743782530210,9.43681,1799.7,1799.6,1.12011843]
[1743782530513,9.43681,1799.7,1799.6,0.00833843]
[1743782531910,8.3251,1799.7,1799.6,1.12011843]
[1743782532215,4.31948,1799.8,1799.7,1.11167]
[1743782532216,1.11167,1799.8,1799.7,1.11167]
[1743782532410,4.31945,1799.8,1799.7,3.5184]
[1743782532613,3.3561,1799.9,1799.7,3.5184]
[1743782532913,3.3561,1799.9,1799.8,1.11165]
[1743782533108,3.2078,1800.0,1799.9,1.11159]
[1743782533312,1.11156,1800.0,1799.9,1.11156]
[1743782533506,1.11152,1800.1,1800.0,1.11151]
[1743782533914,3.3561,1800.1,1800.0,1.11151]
[1743782534111,1.11154,1800.0,1799.9,1.11154]
[1743782534312,1.11165,1799.8,1799.7,4.63005]
[1743782534513,3.3882,1799.9,1799.8,1.11165]
[1743782535221,1.11165,1799.8,1799.7,4.63007]
[1743782536219,3.3882,1799.9,1799.7,3.5184]
[1743782536417,3.2078,1800.0,1799.9,1.11159]
[1743782536719,1.11161,1799.9,1799.8,1.11161]
[1743782536917,1.11164,1799.9,1799.8,1.11163]
[1743782537116,3.3882,1800.1,1799.7,3.5184]
[1743782537317,3.3882,1800.1,1799.7,6.29767]
[1743782537513,3.3882,1800.1,1800.0,1.11153]
[1743782537721,3.21613843,1800.4,1800.3,1.11134]
[1743782538717,3.21613843,1800.4,1800.3,6.83324]
[1743782539225,3.21613843,1800.4,1800.3,4.33324]
[1743782539422,3.21613843,1800.4,1800.3,6.83324]
[1743782540614,3.21613843,1800.4,1800.3,4.33324]
[1743782540816,3.21613843,1800.4,1799.8,2.77912]
[1743782541021,3.294,1800.3,1800.0,1.11149]
[1743782541218,3.294,1800.3,1800.0,1.11148]
[1743782541418,3.2078,1800.2,1799.6,0.00833843]
[1743782541725,11.2638,1800.1,1799.7,1.11167]
[1743782541918,2.77886,1800.0,1799.6,3.55423843]
[1743782542124,1.11171,1799.7,1799.6,0.00833843]
[1743782542318,1.11171,1799.7,1799.6,1.12011843]
[1743782542518,3.294,1799.9,1799.8,1.11165]
[1743782542721,1.11161,1799.9,1799.8,1.11163]
[1743782543013,6.07254,1800.2,1799.7,3.5459]
[1743782543317,4.40555,1800.0,1799.7,3.5459]
[1743782543518,4.40555,1800.0,1799.9,1.11159]
[1743782543916,1.11165,1799.8,1799.7,4.6576]
[1743782544115,3.294,1800.0,1799.7,3.5459]
[1743782544316,1.11153,1800.1,1799.7,6.32519]
[1743782544521,3.2078,1800.1,1799.7,4.65756]
[1743782544716,1.11163,1799.9,1799.7,3.5459]
[1743782544918,2.77853,1800.2,1799.7,3.5459]
[1743782544919,8.98037,1800.3,1799.9,1.11158]
[1743782545114,8.98037,1800.3,1799.7,3.5459]
[1743782545115,3.3846,1800.1,1799.7,3.5459]
[1743782545317,6.202,1800.3,1799.7,3.5459]
[1743782545318,1.11144,1800.2,1800.1,1.11145]
[1743782545716,2.77852,1800.2,1799.8,5.9317]
[1743782545917,3.2078,1799.9,1799.6,0.00833843]
[1743782546121,1.11171,1799.7,1799.6,1.12008843]
[1743782546429,1.11171,1799.7,1799.6,1.12006843]
[1743782546720,1.11171,1799.7,1799.6,0.00833843]
[1743782546921,3.3846,1799.8,1799.7,1.11171]
[1743782547127,4.32745843,1800.4,1800.3,1.11134]
[1743782547326,1.11151,1800.1,1799.7,6.23368]
[1743782547526,4.37286,1800.3,1800.2,1.1114]
[1743782547727,0.00833843,1800.4,1800.3,1.11134]
[1743782547925,4.37261,1800.7,1800.6,1.11116]
[1743782548120,1.1111,1800.7,1800.6,1.11116]
[1743782548321,3.2078,1800.8,1800.6,1.11116]
[1743782548322,3.2078,1800.8,1800.7,1.1111]
[1743782548523,1.11077,1801.3,1800.7,6.6622]
[1743782548828,4.37223,1801.3,1801.2,1.11079]
[1743782549030,1.11086,1801.1,1800.8,0.00833843]
[1743782549222,3.2078,1801.1,1800.8,0.00833843]
[1743782549426,4.31877,1800.9,1800.8,0.00833843]
[1743782550532,6.81877,1800.9,1800.8,0.00833843]
[1743782550832,1.11113,1800.7,1800.6,1.11116]
[1743782551028,3.2078,1800.7,1800.3,3.3612]
[1743782551335,3.3526,1800.8,1800.7,1.1111]
[1743782551539,3.3526,1800.8,1800.7,41.9111]
[1743782551942,3.21613843,1800.9,1800.8,1.11103]
[1743782552144,0.00833843,1800.9,1800.8,1.11103]
[1743782552538,3.2078,1801.3,1800.8,1.11103]
[1743782552539,2.8394,1801.5,1800.8,5.83033829]
[1743782552848,4.46315,1801.6,1801.1,5.98493]
[1743782553043,3.3526,1801.6,1801.3,2.77682]
[1743782553239,1.11045,1801.8,1801.4,3.2667]
[1743782553542,3.5444,1801.8,1801.7,1.11048]
[1743782553737,3.2078,1802.2,1801.8,2.77605]
[1743782553944,1.11004,1802.5,1801.9,9.25037]
[1743782554152,3.5444,1802.4,1802.3,1.11011]
[1743782554352,3.5444,1802.4,1802.3,41.91011]
[1743782554943,3.5444,1802.4,1802.3,40.8]
[1743782555144,6.7522,1802.4,1801.7,3.2078]
[1743782555445,4.31801,1802.2,1802.0,1.11029]
[1743782555646,3.5444,1802.1,1802.0,1.11029]
[1743782555946,3.5444,1802.1,1801.8,3.2667]
[1743782555947,3.2078,1802.1,1801.5,2.8769]
[1743782556247,3.2078,1801.9,1801.5,6.3309]
[1743782556451,1.1105,1801.7,1801.5,1.11056]
[1743782556744,1.1106,1801.5,1801.4,3.46233843]
[1743782556949,1.1106,1801.5,1801.4,0.00833843]
[1743782557446,3.3998,1801.6,1801.4,0.00833843]
[1743782557643,1.1106,1801.5,1801.4,0.00833843]
[1743782557842,3.2078,1801.5,1801.4,0.00833843]
[1743782558042,4.3184,1801.5,1801.4,0.00833843]
[1743782558245,7.7182,1801.5,1801.4,0.00833843]
[1743782558851,14.9732,1801.5,1801.4,0.00833843]
[1743782559248,2.77681,1801.4,1800.6,2.9694]
[1743782559450,1.11091,1801.0,1800.9,1.11096]
[1743782559648,3.2078,1801.2,1800.9,1.11096]
[1743782559849,3.2573,1801.1,1800.8,3.5635]
[1743782560250,3.2078,1801.2,1801.1,1.11085]
[1743782560545,1.11097,1800.9,1800.8,0.00833843]
[1743782561049,2.5,1800.9,1800.6,1.11116]
[1743782561256,3.2573,1800.8,1800.3,3.5635]
[1743782561754,3.2573,1800.8,1800.7,1.1111]
[1743782561952,3.06833843,1801.3,1801.1,1.11085]
[1743782562153,0.00833843,1801.3,1801.2,1.11079]
[1743782562556,0.00833843,1801.3,1801.2,3.61079]
[1743782562851,1.11056,1801.6,1801.5,1.11058]
[1743782563047,2.77636,1801.6,1801.0,0.00833843]
[1743782563252,7.77663,1801.5,1801.0,3.33443843]
[1743782563550,7.7766,1801.5,1801.3,1.11068]
[1743782563751,1.11066,1801.4,1801.3,1.11068]
[1743782563948,6.666,1801.5,1801.3,1.11068]
[1743782563949,3.2078,1801.5,1801.3,1.11068]
[1743782564148,3.2078,1801.5,1801.4,1.11066]
[1743782564456,3.2078,1801.5,1801.2,3.3261]
[1743782564752,1.11081,1801.2,1801.1,1.11085]
[1743782564951,1.11085,1801.1,1801.0,0.00833843]
[1743782565148,3.2078,1801.3,1801.0,0.00833843]
[1743782565348,1.11085,1801.1,1801.0,0.00833843]
[1743782565750,4.31865,1801.1,1801.0,0.00833843]
[1743782566149,5.98497,1801.1,1800.4,10.9106]
[1743782566456,3.2078,1800.8,1800.7,1.1111]
[1743782566853,3.2078,1800.8,1800.5,3.1983]
[1743782567054,3.2078,1800.8,1800.4,3.2078]
[1743782567249,3.2078,1800.8,1800.5,1.11953843]
[1743782567445,3.2078,1800.8,1800.5,0.00833843]
[1743782567754,4.31896,1800.6,1800.5,0.00833843]
[1743782568142,4.31896,1800.6,1799.8,6.17141037]
[1743782568143,8.48571,1800.6,1799.8,6.17141037]
[1743782568351,3.2078,1800.2,1799.6,3.0541]
[1743782568546,1.11136,1800.3,1799.8,2.77911]
[1743782568859,3.2078,1800.4,1800.3,1.11134]
[1743782569248,3.2078,1800.6,1800.1,3.2078]
[1743782569457,3.2078,1800.4,1800.3,1.11131]
[1743782569663,0.00833843,1800.5,1800.4,1.11128]
[1743782570158,1.11957843,1800.5,1800.3,1.1113]
[1743782570354,3.2078,1800.4,1800.2,0.00833843]
[1743782570553,1.11134,1800.3,1800.2,0.00833843]
[1743782571750,7.9598,1800.4,1800.2,0.00833843]
[1743782571950,3.2078,1800.4,1800.3,1.11134]
[1743782572156,0.00833843,1800.5,1800.4,1.11128]
[1743782572351,0.00833843,1800.5,1800.3,1.11134]
[1743782572649,0.00833843,1800.5,1800.2,3.31043843]
[1743782572650,0.00833843,1800.5,1800.4,1.11128]
[1743782573565,3.21613843,1800.5,1800.2,6.38523843]
[1743782573761,1.11134,1800.3,1800.2,0.00833843]
[1743782573954,0.00833843,1800.5,1800.4,1.11128]
[1743782574158,3.21613843,1800.5,1800.4,1.11128]
[1743782574358,1.11134,1800.3,1800.2,3.50053843]
[1743782574564,1.11133,1800.4,1800.2,3.50053843]
[1743782574762,1.11133,1800.4,1800.3,1.11134]
[1743782575368,1.11128,1800.4,1800.2,1.11967843]
[1743782575566,0.00833843,1800.5,1800.4,1.11128]
[1743782576060,3.2078,1801.0,1800.9,1.11097]
[1743782576362,3.2078,1801.0,1800.5,5.98585]
[1743782576659,1.11103,1800.9,1800.6,44.2922]
[1743782576863,1.11103,1800.9,1800.8,1.11103]
[1743782577058,1.111,1800.9,1800.8,1.11103]
[1743782577464,1.111,1800.9,1800.7,3.4922]
[1743782577465,3.21613843,1801.0,1800.7,3.4922]
[1743782577657,1.11101,1800.9,1800.8,1.11099]
[1743782577858,1.11101,1800.9,1800.7,3.4922]
[1743782577859,1.11098,1800.9,1800.7,3.4922]
[1743782578058,1.11098,1800.9,1800.8,1.11101]
[1743782578258,1.1111,1800.7,1800.6,40.8]
[1743782578464,3.2078,1800.8,1800.6,40.8]
[1743782578661,1.1111,1800.7,1800.6,40.8]
[1743782578863,2.77777,1800.7,1800.3,3.0381]
[1743782579058,3.2078,1800.6,1800.2,6.23075843]
[1743782579270,3.2078,1800.8,1800.7,1.1111]
[1743782579464,3.2078,1800.8,1800.2,0.00833843]
[1743782579663,5.98618,1800.3,1799.0,3.2078]
[1743782579862,3.2078,1799.9,1799.6,3.4439]
[1743782580161,4.31945,1799.8,1799.7,40.8]
[1743782580359,4.31938,1800.0,1799.7,40.8]
[1743782580676,3.21613843,1800.0,1799.7,40.80833843]
[1743782580967,0.00833843,1800.0,1799.9,1.11159]
[1743782581167,0.00833843,1800.0,1799.9,7.01529]
[1743782581370,0.00833843,1800.0,1799.9,9.51529]
[1743782581563,0.00833843,1800.0,1799.9,12.72309]
[1743782581768,3.2587,1800.5,1800.0,2.7788]
[1743782581967,3.2078,1800.6,1800.5,1.11122]
[1743782582367,3.2078,1800.6,1800.2,3.4612]
[1743782582568,7.57766,1800.6,1800.5,40.8]
[1743782583666,6.4665,1800.6,1800.5,41.91122]
[1743782583867,3.2078,1800.6,1800.5,41.91122]
[1743782584065,0.00833843,1800.7,1800.6,1.11116]
[1743782584265,0.00833843,1800.7,1800.6,4.34056]
[1743782584468,1.11943843,1800.7,1800.6,3.2294]
[1743782584763,1.11943843,1800.7,1800.6,4.34056]
[1743782584764,0.00833843,1800.7,1800.6,4.34056]
[1743782585063,3.2078,1801.0,1800.7,1.11108]
[1743782585268,1.11109,1800.8,1800.6,4.75]
[1743782585471,1.11109,1800.8,1800.7,3.2294]
[1743782585863,1.11103,1800.8,1800.7,3.2294]
[1743782586064,1.11116,1800.6,1800.5,40.8]
[1743782586368,3.2078,1800.6,1800.3,3.4943]
[1743782586563,3.4252,1800.5,1800.4,1.11961843]
[1743782586765,3.2078,1800.6,1800.4,41.91961843]
[1743782586963,3.2078,1800.6,1800.5,3.4943]
[1743782587171,0.00833843,1800.9,1800.5,3.4943]
[1743782587467,4.32711843,1800.9,1800.8,1.11103]
[1743782587670,4.32715843,1800.9,1800.8,40.8]
[1743782587864,1.11930843,1800.9,1800.8,41.91103]
[1743782588065,4.32710843,1800.9,1800.8,40.8]
[1743782588269,0.00833843,1800.9,1800.8,44.41103]
[1743782588466,3.2078,1801.5,1801.0,2.77727]
[1743782588662,6.633,1801.5,1801.1,3.4943]
[1743782588866,6.633,1801.5,1801.3,1.1107]
[1743782589067,1.11067,1801.4,1801.1,3.4943]
[1743782589269,1.11074,1801.3,1801.1,4.6051]
[1743782589571,1.11085,1801.1,1801.0,3.0165]
[1743782589873,3.2078,1801.1,1801.0,4.12741]
[1743782590068,4.31865,1801.1,1801.0,4.12741]
[1743782590271,6.4216,1801.1,1801.0,4.12741]
[1743782590470,1.11091,1801.0,1800.8,40.8]
[1743782590675,6.4216,1800.9,1800.7,8.0138]
[1743782590867,6.4216,1800.9,1800.7,4.37586]
[1743782591068,1.1111,1800.7,1800.6,1.11114]
[1743782591264,1.11116,1800.6,1800.5,40.8]
[1743782591466,3.2138,1800.6,1800.5,41.91122]
[1743782591671,3.2138,1800.6,1800.5,40.8]
[1743782591672,4.32496,1800.6,1800.5,40.8]
[1743782591880,1.11122,1800.5,1800.4,0.00833843]
[1743782592073,7.53282,1800.5,1800.4,0.00833843]
[1743782592373,7.53282,1800.5,1800.4,40.80833843]
[1743782592579,1.11153,1800.0,1799.9,4.43343]
[1743782592774,3.2078,1800.1,1800.0,1.11148]
[1743782593080,3.2078,1800.3,1800.2,1.1114]
[1743782593273,4.52414,1800.5,1800.4,1.11128]
[1743782593470,4.52414,1800.5,1800.1,6.10056]
[1743782593471,3.4129,1800.5,1800.2,2.77852]
[1743782593671,3.4129,1800.5,1800.4,1.11128]
[1743782593875,1.11128,1800.4,1800.3,0.00833843]
[1743782594077,4.31908,1800.4,1800.3,0.00833843]
[1743782594369,1.11155,1800.0,1799.9,1.11157]
[1743782594576,1.11155,1800.0,1799.5,4.748]
[1743782594577,5.98664,1800.0,1799.5,4.748]
[1743782594768,3.4129,1799.9,1799.6,3.3219]
[1743782594970,4.31937,1800.0,1799.9,1.11159]
[1743782594971,3.2078,1800.0,1799.9,1.11159]
[1743782595379,3.2078,1800.0,1799.6,3.3219]
[1743782595684,4.31945,1799.8,1799.7,40.8]
[1743782596479,1.11171,1799.7,1799.6,0.00833843]
[1743782596677,3.57,1799.7,1799.6,1.12011843]
[1743782596877,3.2078,1799.8,1799.6,1.12011843]
[1743782596878,3.2078,1799.8,1799.7,1.11171]
[1743782597077,3.2078,1800.0,1799.7,5.9193]
[1743782597281,3.2078,1800.2,1800.1,1.11147]
[1743782597474,1.11159,1799.9,1799.8,5.8311]
[1743782597676,1.11171,1799.7,1799.6,40.80833843]
[1743782597880,4.31951,1799.7,1799.6,40.80833843]
[1743782599683,5.7078,1799.7,1798.4,3.2078]
[1743782599878,3.2078,1798.9,1798.8,1.11222]
[1743782600075,3.2078,1798.9,1798.8,41.91222]
[1743782601580,7.63421,1798.9,1798.8,40.8]
[1743782601885,6.522,1798.9,1798.8,41.91227]
[1743782602285,6.522,1798.9,1798.8,45.29837]
[1743782602678,6.522,1798.9,1798.8,44.1861]
[1743782602679,7.63421,1798.9,1798.8,44.1861]
[1743782602879,1.11227,1798.8,1798.7,0.00833843]
[1743782603085,4.42647,1798.8,1798.7,0.00833843]
[1743782603384,4.42647,1798.8,1798.7,40.80833843]
[1743782603584,1.11258,1798.3,1798.1,5.9779]
[1743782603775,4.32028,1798.5,1798.1,5.9779]
[1743782603979,3.2078,1798.5,1798.4,1.11252]
[1743782604183,6.219,1798.9,1798.3,5.98916]
[1743782604389,0.00833843,1799.0,1798.9,1.11221]
[1743782604587,0.00833843,1799.0,1798.9,9.06901]
[1743782604783,3.4794,1799.4,1799.3,1.11196]
[1743782604991,6.6872,1799.7,1799.6,1.11178]
[1743782605187,3.2078,1799.9,1799.8,1.11165]
[1743782605381,3.2078,1799.9,1799.8,41.91165]
[1743782605589,3.2078,1800.1,1800.0,1.11153]
[1743782605780,1.11153,1800.0,1799.9,4.34769]
[1743782605979,0.00833843,1800.0,1799.9,4.34769]
[1743782606485,0.00833843,1800.0,1799.9,6.84769]
[1743782606788,0.00833843,1800.0,1799.9,4.34769]
[1743782607186,0.00833843,1800.0,1799.9,7.55549]
[1743782607383,0.00833843,1800.0,1799.9,4.34769]
[1743782607578,0.00833843,1800.0,1799.9,7.55549]
[1743782607778,3.2078,1800.9,1800.8,1.11103]
[1743782608193,3.2078,1800.9,1800.5,4.749]
[1743782608389,1.11104,1800.8,1800.6,4.47486]
[1743782608584,3.2248,1800.8,1800.6,3.3637]
[1743782608882,3.2078,1800.9,1800.7,1.1111]
[1743782608883,0.00833843,1800.9,1800.7,1.1111]
[1743782609088,0.00833843,1800.9,1800.8,4.31883]
[1743782609391,0.00833843,1800.9,1800.8,3.61103]
[1743782609582,0.00833843,1800.9,1800.8,1.11103]
[1743782609780,0.00833843,1800.9,1800.8,41.91103]
[1743782610286,4.34410843,1800.9,1800.8,40.8]
[1743782610584,1.11118,1800.6,1800.3,4.57698]
[1743782610779,3.5181,1800.5,1800.4,1.11128]
[1743782611184,1.11104,1800.8,1800.6,1.11116]
[1743782611384,7.83702,1800.7,1800.3,3.4657]
[1743782611577,6.7259,1800.7,1800.6,1.11116]
[1743782611785,3.5181,1800.7,1800.6,1.11116]
[1743782611986,1.11116,1800.6,1800.3,3.4657]
[1743782612180,4.62924,1800.7,1800.4,1.11125]
[1743782612386,1.11124,1800.5,1800.2,40.8]
[1743782612594,3.2078,1800.5,1800.4,1.11128]
[1743782612785,3.2078,1800.5,1800.3,3.4657]
[1743782613185,3.2078,1800.5,1800.4,1.11128]
[1743782613386,3.5181,1800.6,1800.4,1.11128]
[1743782613593,3.5181,1800.6,1800.5,1.11122]
[1743782614184,3.2078,1800.7,1800.6,1.11116]
[1743782614391,6.5344,1800.7,1800.6,1.11116]
[1743782614582,6.5344,1800.7,1800.5,1.11118]
[1743782614793,1.11119,1800.6,1800.3,3.4657]
[1743782615093,6.5344,1800.5,1800.3,1.1113]
[1743782615294,7.64564,1800.5,1800.3,1.1113]
[1743782615491,6.5344,1800.5,1800.1,45.546]
[1743782615797,6.5344,1800.5,1799.8,0.00833843]
[1743782615798,3.2078,1800.4,1799.8,0.00833843]
[1743782616096,8.0726,1800.5,1799.8,0.00833843]